bitfinex/quotes_ETHUSD_20220111
["timestamp","ask_amount","ask_price","bid_price","bid_amount"]
[1641924207142,1.54818896,3226.6,3226.1,0.3]
[1641924207343,0.87235614,3226.3,3226.1,0.3]
[1641924207545,1.17235614,3226.3,3226.2,0.77492]
[1641924207843,0.3,3226.3,3226.2,1.39477]
[1641924208043,0.76762212,3226.6,3226.2,1.39477]
[1641924208444,0.76762212,3226.6,3226.2,4.03307588]
[1641924208445,0.00511581,3226.5,3226.2,4.03307588]
[1641924208644,0.81232684,3226.4,3226.2,4.03307588]
[1641924208845,0.81687423,3226.4,3226.2,4.03307588]
[1641924209043,0.00397897,3226.3,3226.2,4.03307588]
[1641924210089,0.00397897,3226.3,3226.2,1.39477]
[1641924210286,0.30397897,3226.3,3226.2,1.39477]
[1641924210689,0.30397897,3226.3,3225.9,2.78967]
[1641924210690,0.00397897,3226.3,3225.9,2.78967]
[1641924210988,0.00341054,3226.2,3225.6,0.77502]
[1641924211193,0.00341054,3226.2,3225.4,1.56085876]
[1641924211194,0.447,3226.1,3225.4,1.56085876]
[1641924211490,0.7750972,3225.8,3225.4,1.56085876]
[1641924211687,0.8094007,3225.8,3225.4,1.56085876]
[1641924211889,0.5500007,3225.7,3225.4,0.16585876]
[1641924212092,0.8500007,3225.7,3225.4,0.16585876]
[1641924213152,0.8500007,3225.7,3225.2,6.24254071]
[1641924213348,0.8500007,3225.7,3225.1,1.58011]
[1641924213548,0.8500007,3225.7,3225.3,0.00170527]
[1641924213745,0.8500007,3225.7,3225.3,0.48226527]
[1641924214146,0.8500007,3225.7,3225.4,0.00113684]
[1641924216250,0.5500007,3225.7,3225.5,0.07749]
[1641924217292,0.5500007,3225.7,3225.5,1.62742]
[1641924218887,0.041988,3226.0,3225.5,1.62742]
[1641924219089,0.0022737,3226.0,3225.8,0.77494]
[1641924219389,0.00170527,3225.9,3225.8,0.77494]
[1641924219792,0.00170527,3225.9,3225.5,1.62742]
[1641924220187,0.00113685,3225.8,3225.5,1.62742]
[1641924220659,0.8075385,3226.0,3225.5,1.62742]
[1641924221060,0.7750632,3225.8,3225.5,1.62742]
[1641924221259,0.808818,3225.8,3225.5,1.62742]
[1641924221458,1.108818,3225.8,3225.5,0.07749]
[1641924223060,1.0750632,3225.8,3225.5,0.07749]
[1641924223260,1.0750632,3225.8,3225.4,0.00113684]
[1641924224688,1.10751608,3225.8,3225.5,0.07749]
[1641924225689,1.10751608,3225.8,3225.6,2.6385193]
[1641924226287,1.10545116,3225.8,3225.6,2.6385193]
[1641924227696,0.80545116,3225.8,3225.6,2.6385193]
[1641924227890,1.10545116,3225.8,3225.6,2.6385193]
[1641924229138,0.80545116,3225.8,3225.6,2.6385193]
[1641924229339,0.00170527,3225.9,3225.7,0.07749]
[1641924229538,0.00170527,3225.9,3225.7,1.07749]
[1641924229740,0.00113685,3225.8,3225.7,1.07749]
[1641924230138,0.00113685,3225.8,3225.7,6.22749]
[1641924230738,0.00113685,3225.8,3225.7,7.00239]
[1641924230937,0.00113685,3225.8,3225.7,9.6409093]
[1641924231788,0.00113685,3225.8,3225.7,8.6409093]
[1641924232997,0.03,3226.3,3225.8,7.1014641]
[1641924233192,0.03,3226.3,3226.1,0.77473]
[1641924233491,0.00227369,3226.2,3226.1,1.07473]
[1641924233692,0.00227369,3226.2,3226.1,2.07473]
[1641924234092,0.00227369,3226.2,3226.1,8.57473]
[1641924234291,0.80621115,3227.1,3226.7,0.47417468]
[1641924234495,7.7757,3227.7,3226.8,0.4648]
[1641924234694,6.22667168,3227.8,3226.8,0.4648]
[1641924234695,0.00454739,3227.0,3226.8,0.4648]
[1641924234894,0.00454739,3227.0,3226.8,2.7882]
[1641924235192,0.00397897,3226.9,3226.8,2.7882]
[1641924235391,6.11,3227.8,3227.4,0.54839981]
[1641924235649,7.59333695,3228.0,3227.6,0.46467]
[1641924235650,7.58948038,3228.0,3227.6,0.46467]
[1641924235844,0.00454739,3227.7,3227.6,0.46467]
[1641924236042,0.00568423,3227.9,3227.6,0.46467]
[1641924236445,0.00511581,3227.8,3227.6,0.46467]
[1641924236743,0.00568423,3227.9,3227.6,0.46467]
[1641924237143,0.00511581,3227.8,3227.6,3.1031893]
[1641924237545,1.25135,3228.6,3227.6,3.1031893]
[1641924237546,0.00568423,3227.9,3227.6,3.1031893]
[1641924237744,0.00568423,3227.9,3227.7,1.54855]
[1641924237943,9.74945,3229.1,3227.7,1.54855]
[1641924237944,0.00511581,3227.8,3227.7,1.54855]
[1641924239145,0.00511581,3227.8,3227.7,7.88545135]
[1641924239603,0.00511581,3227.8,3227.7,10.52223027]
[1641924241603,0.00511581,3227.8,3227.7,10.82223027]
[1641924242203,0.00511581,3227.8,3227.7,11.82223027]
[1641924243239,0.00511581,3227.8,3227.7,9.18545135]
[1641924244243,0.00511581,3227.8,3227.7,8.18545135]
[1641924244442,0.00511581,3227.8,3227.7,1.84855]
[1641924244640,0.00511581,3227.8,3227.7,0.3]
[1641924246046,4.95,3227.7,3227.2,1.68710997]
[1641924246247,4.95,3227.7,3226.5,1.56369315]
[1641924246248,6.05975,3227.7,3226.5,1.56369315]
[1641924246443,0.00397896,3227.6,3226.3,0.5]
[1641924246642,0.00397896,3227.6,3226.6,0.00170527]
[1641924246643,0.7747583,3227.2,3226.6,0.00170527]
[1641924246905,0.07746,3227.1,3226.6,0.00170527]
[1641924247206,0.05432428,3226.9,3226.6,0.00170527]
[1641924247405,1.57878428,3226.9,3226.6,0.00170527]
[1641924248203,2.39120537,3226.9,3226.6,0.00170527]
[1641924248404,1.39120537,3226.9,3226.6,0.00170527]
[1641924248613,2.39120537,3226.9,3226.6,0.00170527]
[1641924249005,2.33688109,3226.9,3226.6,0.00170527]
[1641924249610,2.25942109,3226.9,3226.6,0.00170527]
[1641924250953,1.25942109,3226.9,3226.6,0.00170527]
[1641924252059,1.25942109,3226.9,3226.5,0.0022737]
[1641924252860,0.03082057,3227.0,3226.5,0.0022737]
[1641924253058,0.00113685,3227.1,3226.5,0.0022737]
[1641924253662,0.00113685,3227.1,3226.6,0.07746]
[1641924254060,0.00113685,3227.1,3226.7,0.00113685]
[1641924254302,0.00113685,3227.1,3226.8,0.07746]
[1641924254502,0.00113685,3227.1,3226.8,2.88691952]
[1641924254702,0.00113685,3227.1,3226.8,0.07746]
[1641924254901,0.00113685,3227.1,3226.8,2.90562541]
[1641924255104,0.00113685,3227.1,3226.8,2.89781718]
[1641924255507,0.00113685,3227.1,3226.9,2.63713079]
[1641924255709,0.00113685,3227.1,3227.0,4.52746]
[1641924256703,0.00113685,3227.1,3227.0,7.56591997]
[1641924256904,0.00113685,3227.1,3227.0,9.61591997]
[1641924257703,3.685e-05,3227.1,3227.0,9.61591997]
[1641924258352,3.685e-05,3227.1,3227.0,12.25268352]
[1641924259253,3.685e-05,3227.1,3227.0,10.20268352]
[1641924260052,3.685e-05,3227.1,3227.0,11.50268352]
[1641924260852,3.685e-05,3227.1,3227.0,8.46422355]
[1641924261458,3.685e-05,3227.1,3227.0,7.16422355]
[1641924261889,3.685e-05,3227.1,3227.0,7.08676355]
[1641924262794,3.685e-05,3227.1,3227.0,7.38676355]
[1641924263491,3.685e-05,3227.1,3227.0,4.75]
[1641924263692,3.685e-05,3227.1,3227.0,7.57204525]
[1641924265393,3.685e-05,3227.1,3227.0,10.28644295]
[1641924266239,3.685e-05,3227.1,3227.0,10.28195046]
[1641924266642,3.685e-05,3227.1,3227.0,7.45990521]
[1641924268840,3.685e-05,3227.1,3227.0,10.2087051]
[1641924270097,3.685e-05,3227.1,3227.0,10.2861651]
[1641924270893,3.685e-05,3227.1,3227.0,7.45990521]
[1641924271093,3.685e-05,3227.1,3227.0,10.29715604]
[1641924271294,3.685e-05,3227.1,3227.0,10.29572181]
[1641924271495,3.685e-05,3227.1,3227.0,10.30415505]
[1641924275142,3.685e-05,3227.1,3227.0,10.22669505]
[1641924277098,0.74860947,3227.8,3227.4,0.77443]
[1641924277490,0.00344739,3227.7,3227.5,0.3]
[1641924277890,0.74860947,3227.8,3227.5,0.3]
[1641924277891,0.00287896,3227.6,3227.5,0.3]
[1641924278289,0.00287896,3227.6,3227.5,2.9369377]
[1641924278893,0.00287896,3227.6,3227.5,3.3241577]
[1641924279493,0.00287896,3227.6,3227.5,3.0241577]
[1641924280293,1.05997728,3227.6,3227.5,3.0241577]
[1641924280540,1.35997728,3227.6,3227.5,2.6369377]
[1641924281645,0.52675756,3227.2,3227.1,3.4115277]
[1641924281945,0.52675756,3227.2,3227.1,3.4114977]
[1641924282142,0.52675756,3227.2,3227.1,3.7114977]
[1641924282543,0.52675756,3227.2,3227.1,4.62456]
[1641924282742,0.00231054,3227.5,3227.1,7.54337926]
[1641924282946,0.00231054,3227.5,3227.3,0.77439]
[1641924283143,0.00174212,3227.4,3227.3,3.64482394]
[1641924283643,0.00174212,3227.4,3227.3,3.17439]
[1641924284307,0.00174212,3227.4,3227.3,6.06978907]
[1641924284597,0.00174212,3227.4,3227.3,6.84420907]
[1641924284797,0.00174212,3227.4,3227.3,7.84420907]
[1641924285002,0.00174212,3227.4,3227.3,8.29120907]
[1641924285201,0.00174212,3227.4,3227.3,8.36865907]
[1641924285398,0.60197461,3228.5,3227.4,6.5]
[1641924285600,0.60197461,3228.5,3228.1,0.38716]
[1641924285801,0.00625265,3228.5,3228.1,0.38716]
[1641924285999,0.00625265,3228.5,3228.2,2.89541013]
[1641924286601,0.00625265,3228.5,3228.1,0.68716]
[1641924286800,0.00625265,3228.5,3228.2,0.53365469]
[1641924287003,0.00625265,3228.5,3228.2,1.30795469]
[1641924287202,0.00625265,3228.5,3228.2,2.08214469]
[1641924287400,0.00625265,3228.5,3228.2,2.85644469]
[1641924287606,0.00625265,3228.5,3228.4,5.05]
[1641924287801,0.00625265,3228.5,3228.4,11.32742]
[1641924288849,0.00625265,3228.5,3228.4,11.94839042]
[1641924289049,0.00625265,3228.5,3228.4,11.32742]
[1641924289250,0.00625265,3228.5,3228.4,6.57742]
[1641924289450,0.00625265,3228.5,3228.4,2.77742]
[1641924290454,0.00625265,3228.5,3228.4,5.27742]
[1641924291055,0.00625265,3228.5,3228.4,5.2]
[1641924291990,0.00625265,3228.5,3228.4,2.7]
[1641924292191,0.00625265,3228.5,3228.4,0.3]
[1641924294290,0.00625265,3228.5,3228.4,2.55]
[1641924294690,0.00625265,3228.5,3228.4,0.3]
[1641924295194,0.00625265,3228.5,3228.2,1.0743]
[1641924295545,0.30568423,3228.4,3228.2,1.0743]
[1641924295942,0.00511581,3228.3,3228.2,1.0743]
[1641924297645,0.00511581,3228.3,3228.2,0.3]
[1641924297943,0.00511581,3228.3,3228.1,2.32303]
[1641924298149,0.77950761,3228.3,3228.2,2.63635645]
[1641924298343,0.8101658,3228.3,3228.2,2.63635645]
[1641924298544,1.1101658,3228.3,3228.2,2.63635645]
[1641924298747,1.0743918,3228.3,3228.2,2.63635645]
[1641924299144,0.3,3228.3,3228.2,2.63635645]
[1641924299399,0.7743362,3228.5,3228.2,3.41067645]
[1641924299597,0.3,3228.4,3228.2,3.41067645]
[1641924299796,0.3,3228.4,3228.2,3.71067645]
[1641924299995,0.3,3228.4,3228.2,3.41067645]
[1641924300199,0.3,3228.4,3228.2,2.63635645]
[1641924300595,0.3,3228.4,3228.3,2.63635645]
[1641924300995,2.85568423,3228.4,3228.3,2.63635645]
[1641924301196,4.40461733,3228.4,3227.9,0.03]
[1641924301400,0.7745133,3228.2,3227.9,0.03]
[1641924301602,0.0544555,3228.1,3227.9,0.03]
[1641924301797,0.30397896,3228.1,3227.9,0.03]
[1641924301999,0.00341054,3228.0,3227.9,0.03]
[1641924302201,0.00341054,3228.0,3227.9,0.0001]
[1641924302399,0.08084054,3228.0,3227.9,0.0001]
[1641924303848,0.08084054,3228.0,3227.9,0.0301]
[1641924305449,4.23541977,3228.1,3227.9,0.0301]
[1641924306553,0.07743,3228.0,3227.9,0.0301]
[1641924306821,4.30378683,3228.1,3227.9,0.0301]
[1641924308010,1.0,3228.0,3227.9,0.0301]
[1641924308209,5.85277463,3228.1,3228.0,2.63660637]
[1641924308409,5.88813161,3228.1,3228.0,2.63660637]
[1641924308908,6.88813161,3228.1,3228.0,2.63660637]
[1641924309109,6.88813161,3228.1,3227.9,0.0301]
[1641924309310,1.0,3228.0,3227.9,0.0301]
[1641924310549,5.96556161,3228.1,3227.9,0.0301]
[1641924310952,5.88813161,3228.1,3227.9,0.0301]
[1641924311549,1.0,3228.0,3227.9,0.0301]
[1641924312550,1.0,3228.0,3227.9,2.66681666]
[1641924312850,5.88813161,3228.1,3227.9,2.66681666]
[1641924314300,1.0,3228.0,3227.9,2.66681666]
[1641924314501,1.07743,3228.0,3227.9,0.0301]
[1641924314901,1.07743,3228.0,3227.2,0.07743]
[1641924315102,0.7747081,3227.6,3227.2,0.07743]
[1641924315299,0.88314217,3227.6,3227.3,0.00397897]
[1641924315500,0.53158175,3227.5,3227.3,0.00397897]
[1641924315905,0.53158175,3227.5,3227.2,0.07743]
[1641924315906,3.37745,3227.4,3227.2,0.07743]
[1641924316106,3.75,3227.3,3226.7,0.44609315]
[1641924316307,0.7749376,3227.1,3226.7,0.44609315]
[1641924316506,0.07746,3227.0,3226.8,0.00284211]
[1641924316802,0.07746,3227.0,3226.2,3.13684044]
[1641924316803,0.37746,3227.0,3226.5,0.00454739]
[1641924317006,0.95625901,3226.9,3226.5,0.00454739]
[1641924317203,0.07746,3226.8,3226.3,0.00568423]
[1641924317402,1.03372901,3226.9,3226.3,0.00568423]
[1641924318063,0.7749145,3226.8,3226.3,0.00568423]
[1641924318252,0.48260763,3226.4,3226.3,0.00568423]
[1641924318652,0.78260763,3226.4,3226.3,0.00568423]
[1641924319257,0.78260763,3226.4,3225.9,0.00795793]
[1641924319453,0.81273711,3226.2,3225.9,0.30795793]
[1641924319654,0.05016752,3226.1,3225.9,1.08287793]
[1641924319853,1.11273711,3226.2,3226.0,0.0073895]
[1641924321799,1.11273711,3226.2,3225.7,0.00909477]
[1641924321995,0.7749612,3226.0,3225.8,0.77496]
[1641924322197,0.80835443,3226.0,3225.8,0.77496]
[1641924322396,1.10835443,3226.0,3225.9,0.30795793]
[1641924322597,1.10835443,3226.0,3225.9,0.00795793]
[1641924322997,1.10835443,3226.0,3225.7,0.00909477]
[1641924324098,4.20835443,3226.0,3225.8,0.7749]
[1641924324497,4.20835443,3226.0,3225.9,0.00795793]
[1641924324900,3.90835443,3226.0,3225.8,0.77493]
[1641924325299,3.13339323,3226.0,3225.9,3.35795793]
[1641924326348,3.43339323,3226.0,3225.9,3.35795793]
[1641924328849,3.43339323,3226.0,3225.9,0.00795793]
[1641924329050,3.43339323,3226.0,3225.9,0.30795793]
[1641924330210,3.43339323,3226.0,3225.9,2.646079]
[1641924330803,3.13339323,3226.0,3225.9,2.646079]
[1641924331005,3.13339323,3226.0,3225.9,5.796079]
[1641924331404,3.13339323,3226.0,3225.9,2.646079]
[1641924332304,3.43339323,3226.0,3225.9,2.946079]
[1641924332907,3.43339323,3226.0,3225.9,5.696079]
[1641924333345,3.43339323,3226.0,3225.9,2.946079]
[1641924333847,3.43339323,3226.0,3225.9,2.646079]
[1641924335047,4.98340363,3226.0,3225.9,2.646079]
[1641924335648,4.98340363,3226.0,3225.9,0.00795793]
[1641924335947,6.06089363,3226.0,3225.9,0.00795793]
[1641924336996,9.36089363,3226.0,3225.9,2.31250674]
[1641924337202,9.36089363,3226.0,3225.5,0.18245471]
[1641924337203,4.95,3225.9,3225.5,0.18245471]
[1641924337396,1.35461332,3225.8,3225.5,0.18245471]
[1641924337596,4.7,3225.6,3224.8,3.95520234]
[1641924337795,0.0775,3225.5,3224.8,3.95520234]
[1641924337998,1.550693,3225.4,3224.9,0.00397896]
[1641924338195,1.2806554,3225.3,3224.9,0.00397896]
[1641924338595,0.4646244,3225.2,3224.9,0.00397896]
[1641924338796,0.0775,3225.1,3224.9,0.00397896]
[1641924338997,0.8528328,3225.1,3224.9,0.00397896]
[1641924339196,1.18937206,3225.1,3224.9,0.00397896]
[1641924339599,2.11187206,3225.1,3224.8,0.03479811]
[1641924342360,2.11187206,3225.1,3224.3,1.55049]
[1641924342361,0.07752,3225.0,3224.3,1.55049]
[1641924342559,2.3261372,3224.8,3224.2,4.14883762]
[1641924342753,2.3261372,3224.8,3224.4,0.00284212]
[1641924342754,0.07752,3224.7,3224.4,0.00284212]
[1641924342952,0.447,3224.6,3224.4,0.00284212]
[1641924343752,2.96662407,3224.5,3224.4,0.00284212]
[1641924343952,1.39114407,3224.5,3224.4,0.00284212]
[1641924344158,2.69114407,3224.5,3224.4,0.00284212]
[1641924344407,1.69114407,3224.5,3224.4,0.00284212]
[1641924344602,2.69114407,3224.5,3224.4,0.00284212]
[1641924345003,0.52452,3224.5,3224.4,0.00284212]
[1641924345205,3.90871825,3224.6,3224.4,6.50284212]
[1641924345402,3.1,3224.6,3224.4,6.50284212]
[1641924345605,3.1,3224.6,3224.5,3.10227369]
[1641924345999,3.1,3224.6,3224.5,0.00227369]
[1641924346201,4.15911535,3224.6,3224.5,0.00227369]
[1641924346400,4.45911535,3224.6,3224.5,0.00227369]
[1641924347003,5.45911535,3224.6,3224.5,0.00227369]
[1641924347207,5.45911535,3224.6,3224.3,0.00341054]
[1641924347400,1.07752,3224.5,3224.3,0.00341054]
[1641924347606,1.8530395,3224.5,3224.3,0.00341054]
[1641924347800,1.88717178,3224.5,3224.3,0.00341054]
[1641924348065,0.3,3224.4,3224.3,0.00341054]
[1641924350067,1.76596615,3224.5,3224.3,0.00341054]
[1641924350870,1.76596615,3224.5,3223.4,5.39125762]
[1641924350871,0.77212946,3224.3,3223.4,5.39125762]
[1641924351071,0.0504332,3224.2,3223.4,4.14883762]
[1641924351268,0.4542882,3223.5,3223.4,4.14883762]
[1641924351468,0.83087089,3223.8,3223.4,4.14883762]
[1641924351668,0.83087089,3223.8,3223.4,4.15395343]
[1641924352216,3.42713875,3223.7,3223.4,4.15395343]
[1641924352402,1.43087089,3223.8,3223.4,4.15395343]
[1641924352602,0.48247367,3223.9,3223.4,4.15395343]
[1641924352603,0.447,3223.6,3223.4,4.15395343]
[1641924352803,5.75,3223.5,3223.1,1.55426564]
[1641924352998,1.30048,3223.4,3223.1,1.55426564]
[1641924353197,2.30048,3223.4,3223.2,0.00113685]
[1641924353401,6.67589,3223.3,3222.6,1.55426564]
[1641924353597,1.52456,3223.2,3222.6,1.55426564]
[1641924353998,0.52456,3223.2,3222.6,1.55426564]
[1641924354202,0.61947112,3222.7,3222.6,1.55426564]
[1641924354399,0.91947112,3222.7,3222.6,1.55426564]
[1641924354600,0.61947112,3222.7,3222.6,1.55767618]
[1641924354800,0.91947112,3222.7,3222.6,1.55767618]
[1641924355002,0.91947112,3222.7,3222.6,0.00341054]
[1641924355560,1.21947112,3222.7,3222.5,0.00397896]
[1641924355753,5.47326543,3222.6,3222.5,0.00397896]
[1641924355950,2.1,3222.5,3222.4,0.37397896]
[1641924356151,3.1,3222.5,3222.4,0.37397896]
[1641924356351,1.3,3222.5,3222.4,0.37397896]
[1641924356552,0.3,3222.5,3222.4,0.37397896]
[1641924356852,1.747,3222.5,3222.4,0.37397896]
[1641924357253,2.047,3222.5,3222.4,0.37397896]
[1641924357452,1.747,3222.5,3222.4,0.37397896]
[1641924357653,0.447,3222.5,3222.4,0.37397896]
[1641924357860,0.03981743,3223.1,3222.4,0.37397896]
[1641924358060,5.616,3223.4,3222.4,0.37397896]
[1641924358256,0.00170527,3222.8,3222.4,0.37397896]
[1641924358455,0.00170527,3222.8,3222.4,3.01475023]
[1641924358762,0.00113684,3222.7,3222.4,3.01475023]
[1641924358956,0.56271278,3222.6,3222.4,3.01475023]
[1641924359626,0.56271278,3222.6,3222.5,2.64077127]
[1641924359826,0.86271278,3222.6,3222.5,2.64077127]
[1641924360532,0.64027278,3222.6,3222.5,2.64077127]
[1641924360737,0.56271278,3222.6,3222.5,2.64077127]
[1641924360927,0.07756,3222.9,3222.5,2.64077127]
[1641924361126,1.65662516,3223.0,3222.5,2.64077127]
[1641924361329,0.00284211,3223.0,3222.5,2.64077127]
[1641924361531,0.00227369,3222.9,3222.5,2.64077127]
[1641924361730,0.00227369,3222.9,3222.6,0.07756]
[1641924361930,0.47155519,3223.3,3222.6,0.07756]
[1641924362132,0.45215837,3223.3,3222.6,0.07756]
[1641924362330,0.00397896,3223.2,3222.6,0.07756]
[1641924362831,0.00341054,3223.1,3222.6,0.07756]
[1641924363259,0.00284211,3223.0,3222.6,0.07756]
[1641924363455,0.00284211,3223.0,3222.7,2.64077127]
[1641924363756,0.00227369,3222.9,3222.7,2.64077127]
[1641924363953,0.44390787,3223.3,3222.7,2.64077127]
[1641924364355,3.10170527,3223.2,3222.7,2.64077127]
[1641924364555,3.10170527,3223.2,3222.5,2.64077127]
[1641924364757,0.00113685,3223.1,3222.5,2.64077127]
[1641924364959,0.84817001,3222.9,3222.6,0.00170527]
[1641924365157,0.05104503,3222.8,3222.6,0.00170527]
[1641924365355,0.54776248,3222.8,3222.6,0.00170527]
[1641924366358,0.54776248,3222.8,3222.5,2.39247654]
[1641924366359,0.07756,3222.7,3222.5,2.39247654]
[1641924366805,0.54776248,3222.8,3222.5,2.39247654]
[1641924368410,0.07756,3223.0,3222.6,5.4]
[1641924368605,0.50799508,3222.8,3222.6,5.4]
[1641924369204,0.50799508,3222.8,3222.5,2.39247654]
[1641924369806,0.00170527,3222.9,3222.5,2.39247654]
[1641924370206,0.00113685,3222.8,3222.5,2.39247654]
[1641924370663,0.00227369,3223.0,3222.5,2.39247654]
[1641924371063,0.00170527,3222.9,3222.5,2.39247654]
[1641924371559,0.00113685,3222.8,3222.5,2.39247654]
[1641924371959,0.00227369,3223.0,3222.5,2.39247654]
[1641924372159,1.12772287,3223.1,3222.6,3.95]
[1641924372361,1.12772287,3223.1,3222.6,3.95227369]
[1641924372560,1.12772287,3223.1,3222.7,2.74065715]
[1641924372761,3.1,3223.2,3222.7,2.74065715]
[1641924372959,3.1,3223.2,3222.8,0.00113684]
[1641924373359,3.4,3223.2,3222.8,0.00113684]
[1641924373563,3.4,3223.2,3222.6,0.07756]
[1641924373564,0.83277104,3223.0,3222.7,0.00170527]
[1641924373760,0.07756,3222.9,3222.7,0.00170527]
[1641924373959,0.07756,3223.0,3222.7,0.00170527]
[1641924374159,1.0,3223.1,3222.7,0.00170527]
[1641924374811,0.6098153,3223.0,3222.7,0.00170527]
[1641924375008,0.9098153,3223.0,3222.5,0.00284211]
[1641924375310,0.07756,3222.9,3222.5,0.00284211]
[1641924375906,0.85343,3222.9,3222.5,0.00284211]
[1641924376112,0.37756,3222.9,3222.5,0.00284211]
[1641924376508,0.3,3222.9,3222.5,0.00284211]
[1641924376710,4.0439669,3223.2,3222.5,0.00284211]
[1641924377113,1.3,3223.1,3222.5,0.00284211]
[1641924377313,3.1,3223.2,3222.5,0.00284211]
[1641924377614,3.1,3223.2,3223.0,0.5782822]
[1641924377811,3.1,3223.2,3222.9,0.77558]
[1641924378061,3.1,3223.2,3223.0,0.07756]
[1641924378862,0.0001,3223.2,3223.1,6.5]
[1641924379056,5.169,3224.2,3223.6,0.55703537]
[1641924379455,5.169,3224.2,3223.1,6.57756]
[1641924379857,0.55456691,3224.0,3223.5,1.55083]
[1641924380157,0.87138409,3223.9,3223.1,6.57756]
[1641924380357,0.87138409,3223.9,3223.3,0.7755]
[1641924380657,0.00454739,3223.8,3223.3,0.7755]
[1641924381057,0.00397897,3223.7,3223.3,0.7755]
[1641924381265,0.00397897,3223.7,3223.3,0.75274201]
[1641924381457,0.00341054,3223.6,3223.1,9.60196]
[1641924381657,0.07754,3223.5,3223.1,8.05098]
[1641924381911,0.00284212,3223.5,3223.1,8.05098]
[1641924382111,0.06751512,3223.4,3223.1,1.55098]
[1641924382313,0.06751512,3223.4,3222.9,3.95520234]
[1641924382512,0.07699157,3223.4,3223.0,6.5]
[1641924382717,11.279,3224.5,3223.3,0.01210885]
[1641924382914,11.279,3224.5,3223.4,0.07753]
[1641924383112,0.0022737,3223.7,3223.4,0.07753]
[1641924383513,0.00170527,3223.6,3223.5,1.55079]
[1641924383716,0.00170527,3223.6,3223.5,6.42833]
[1641924384115,0.00170527,3223.6,3223.5,7.203685]
[1641924384317,0.00170527,3223.6,3223.5,9.679085]
[1641924384721,0.07754,3224.4,3223.5,10.426085]
[1641924384917,0.07754,3224.4,3224.1,0.7752]
[1641924385116,0.00397897,3224.3,3224.1,1.5503942]
[1641924385316,0.00397897,3224.3,3224.2,1.07523]
[1641924385567,0.07754,3224.4,3224.2,7.57523]
[1641924386360,0.07754,3224.4,3224.2,7.57217283]
[1641924386760,0.07754,3224.4,3224.2,7.35275]
[1641924386963,6.96,3225.1,3224.3,6.5]
[1641924387166,6.96,3225.1,3224.6,0.7751]
[1641924387363,6.96,3225.1,3224.8,0.7751009]
[1641924387762,6.96,3225.1,3224.7,0.77511]
[1641924388062,0.52550747,3225.0,3224.7,0.77511]
[1641924388262,0.52550747,3225.0,3224.7,0.77517]
[1641924388462,0.52550747,3225.0,3224.9,2.63938033]
[1641924388863,0.5334654,3225.0,3224.9,2.63938033]
[1641924389510,0.5334654,3225.0,3224.8,2.63938033]
[1641924389911,0.00738951,3224.9,3224.8,2.63938033]
[1641924391313,3.73490951,3224.9,3224.8,2.63938033]
[1641924391516,3.73490951,3224.9,3224.7,2.63938033]
[1641924391517,4.73490951,3224.9,3224.7,2.63938033]
[1641924391718,4.52752,3224.8,3224.7,2.63938033]
[1641924391914,5.53434109,3224.8,3224.7,1.34218033]
[1641924392117,6.13434109,3224.8,3224.7,1.34218033]
[1641924392316,0.83153217,3224.0,3223.9,3.95520234]
[1641924392519,0.83153217,3224.0,3223.7,0.2076]
[1641924392520,0.05639312,3223.9,3223.7,0.2076]
[1641924392818,0.00113685,3223.8,3223.7,0.2076]
[1641924395561,1.60074188,3223.8,3223.7,0.2076]
[1641924396359,0.9759463,3223.8,3223.7,0.2076]
[1641924396834,0.00113685,3223.8,3223.7,0.2076]
[1641924397832,3.10113685,3223.8,3223.7,0.2076]
[1641924398430,3.10113685,3223.8,3223.5,1.5509395]
[1641924398630,2.88803685,3223.8,3223.7,0.03]
[1641924398833,6.14824266,3224.8,3223.9,1.55055]
[1641924398834,0.07753,3224.7,3223.9,1.55055]
[1641924399030,6.11,3224.8,3223.9,1.55055]
[1641924399031,6.11,3224.8,3224.0,1.62799]
[1641924399233,0.00397897,3224.5,3224.0,1.62799]
[1641924399439,0.00397897,3224.5,3224.3,0.77528]
[1641924399734,0.00341054,3224.4,3224.3,0.77528]
[1641924401962,0.00341054,3224.4,3224.3,7.87514154]
[1641924402159,6.11,3225.8,3224.4,6.5]
[1641924402358,6.11,3225.8,3224.8,1.550039]
[1641924402560,6.11,3225.8,3224.9,0.0775]
[1641924402561,0.00397897,3225.1,3224.9,0.0775]
[1641924402959,0.00341054,3225.0,3224.9,0.0775]
[1641924403158,0.00341054,3225.0,3224.9,5.4775]
[1641924403358,0.00341054,3225.0,3224.9,5.7775]
[1641924403562,0.00341054,3225.0,3224.9,5.4775]
[1641924404420,0.00341054,3225.0,3224.9,5.99433999]
[1641924404622,0.00341054,3225.0,3224.9,6.76935999]
[1641924405615,0.00341054,3225.0,3224.9,1.29185999]
[1641924405816,0.00341054,3225.0,3224.8,1.55006]
[1641924406217,0.00284212,3224.9,3224.8,1.55006]
[1641924407920,0.00284212,3224.9,3224.7,1.55032]
[1641924408374,0.61066416,3225.2,3224.6,0.77515]
[1641924408375,0.0022737,3224.8,3224.6,0.77515]
[1641924408877,0.00170527,3224.7,3224.6,1.55036]
[1641924409078,0.00170527,3224.7,3224.6,4.95036]
[1641924411179,0.00170527,3224.7,3224.6,7.65036]
[1641924411380,0.00170527,3224.7,3224.6,10.55159979]
[1641924411812,0.00170527,3224.7,3224.6,10.62911979]
[1641924412316,0.00170527,3224.7,3224.6,13.26824914]
[1641924413112,0.00170527,3224.7,3224.6,13.19072914]
[1641924413813,0.00170527,3224.7,3224.6,13.49072914]
[1641924414013,0.00170527,3224.7,3224.6,7.88948935]
[1641924414414,0.00170527,3224.7,3224.6,7.96700935]
[1641924414614,0.00170527,3224.7,3224.6,10.81035316]
[1641924414819,0.00170527,3224.7,3224.6,7.96700935]
[1641924415861,0.00170527,3224.7,3224.6,10.81070816]
[1641924416060,0.07752,3225.8,3224.6,10.78249816]
[1641924416260,7.084182,3226.3,3224.6,10.78249816]
[1641924416261,7.084182,3226.3,3225.4,0.77488]
[1641924416460,0.00511581,3225.6,3225.5,6.92701273]
[1641924416659,0.00511581,3225.6,3225.5,6.94075299]
[1641924417161,0.00511581,3225.6,3225.5,5.46730167]
[1641924417364,0.00511581,3225.6,3225.5,9.92538108]
[1641924417561,0.00511581,3225.6,3225.5,7.05250164]
[1641924417760,0.00511581,3225.6,3225.5,7.12999164]
[1641924417958,0.00511581,3225.6,3225.5,9.42999164]
[1641924418361,0.00511581,3225.6,3225.5,9.76912099]
[1641924418760,0.00511581,3225.6,3225.5,3.55225932]
[1641924418960,0.00511581,3225.6,3225.5,2.63912935]